fUST/lending_fUST_20240824
["ID","MTS","AMOUNT","RATE_DAILY","PERIOD"]
[335709391,1724457060141,-151.0,0.00013972,2]
[335709392,1724457060150,-151.0,0.00013972,2]
[335709393,1724457060159,-941.33,0.00013972,2]
[335709394,1724457060168,-151.0,0.00013972,2]
[335709395,1724457060178,-500.0,0.00013972,2]
[335709396,1724457060187,-500.0,0.00013972,2]
[335709397,1724457060196,-500.0,0.00013972,2]
[335709398,1724457060206,-570.19,0.00013972,2]
[335709399,1724457060215,-772.25,0.00013972,2]
[335709400,1724457060224,-500.0,0.00013972,2]
[335709401,1724457060233,-500.0,0.00013972,2]
[335709402,1724457060243,-1084.44,0.00013972,2]
[335709403,1724457060252,-500.0,0.00013972,2]
[335709404,1724457060261,-500.0,0.00013972,2]
[335709405,1724457060271,-500.0,0.00013972,2]
[335709406,1724457060279,-574.26,0.00013972,2]
[335709407,1724457060289,-1791.0,0.00013972,2]
[335709408,1724457060298,-203.63417881,0.00013972,2]
[335709409,1724457060307,-854.09,0.00013972,2]
[335709410,1724457060316,-1529.95,0.00013972,2]
[335709411,1724457060325,-500.0,0.00013972,2]
[335709412,1724457060334,-500.0,0.00013972,2]
[335709413,1724457060345,-500.0,0.00013972,2]
[335709414,1724457060354,-500.0,0.00013972,2]
[335709415,1724457060363,-2094.87,0.00013972,2]
[335709416,1724457060372,-1704.65,0.00013972,2]
[335709417,1724457060382,-500.0,0.00013972,2]
[335709418,1724457060391,-500.0,0.00013972,2]
[335709419,1724457060401,-500.0,0.00013972,2]
[335709420,1724457060410,-500.0,0.00013972,2]
[335709421,1724457060419,-500.0,0.00013972,2]
[335709422,1724457060429,-1207.14,0.00013972,2]
[335709423,1724457060438,-842.24,0.00013972,2]
[335709424,1724457060447,-500.0,0.00013972,2]
[335709425,1724457060457,-500.0,0.00013972,2]
[335709426,1724457060466,-535.16,0.00013972,2]
[335709427,1724457060476,-1359.34,0.00013972,2]
[335709428,1724457060485,-500.0,0.00013972,2]
[335709429,1724457060494,-428.101604,0.00013972,2]
[335709430,1724457060503,-428.101604,0.00013972,2]
[335709431,1724457060512,-658.63,0.00013972,2]
[335709432,1724457060521,-428.101604,0.00013972,2]
[335709433,1724457060531,-500.0,0.00013972,2]
[335709434,1724457060540,-428.101604,0.00013972,2]
[335709435,1724457060549,-428.101604,0.00013972,2]
[335709436,1724457060558,-428.101604,0.00013972,2]
[335709437,1724457060568,-500.0,0.00013972,2]
[335709438,1724457060578,-736.92,0.00013972,2]
[335709439,1724457060588,-500.0,0.00013972,2]
[335709440,1724457060597,-503.52602179,0.00013972,2]
[335709441,1724457060606,-500.0,0.00013972,2]
[335709442,1724457060623,-546.37110612,0.00013972,2]
[335709443,1724457060633,-834.04,0.00013972,2]
[335709444,1724457060642,-500.0,0.00013972,2]
[335709445,1724457060653,-500.0,0.00013972,2]
[335709446,1724457060663,-980.03,0.00013972,2]
[335709447,1724457060672,-500.0,0.00013972,2]
[335709448,1724457060681,-500.0,0.00013972,2]
[335709449,1724457060690,-2979.06,0.00013972,2]
[335709450,1724457060699,-1705.01,0.00013972,2]
[335709451,1724457060709,-500.0,0.00013972,2]
[335709452,1724457060718,-500.0,0.00013972,2]
[335709453,1724457060727,-565.9,0.00013972,2]
[335709454,1724457060736,-500.0,0.00013972,2]
[335709455,1724457060746,-500.0,0.00013972,2]
[335709456,1724457060756,-1068.13,0.00013972,2]
[335709457,1724457060765,-500.0,0.00013972,2]
[335709458,1724457060775,-802.99,0.00013972,2]
[335709459,1724457060785,-500.0,0.00013972,2]
[335709460,1724457060794,-500.0,0.00013972,2]
[335709461,1724457060803,-1033.07,0.00013972,2]
[335709462,1724457060812,-896.97,0.00013972,2]
[335709463,1724457060822,-500.0,0.00013972,2]
[335709464,1724457060831,-829.66,0.00013972,2]
[335709465,1724457060842,-500.0,0.00013972,2]
[335709466,1724457060851,-500.0,0.00013972,2]
[335709467,1724457060861,-1353.88,0.00013972,2]
[335709468,1724457060870,-858.53,0.00013972,2]
[335709469,1724457060879,-500.0,0.00013972,2]
[335709470,1724457060888,-500.0,0.00013972,2]
[335709471,1724457060898,-528.26021334,0.00013972,2]
[335709472,1724457060907,-669.27,0.00013972,2]
[335709473,1724457060916,-718.17,0.00013972,2]
[335709474,1724457060925,-500.0,0.00013972,2]
[335709475,1724457060934,-239.27402908,0.00013972,2]
[335709476,1724457060943,-500.0,0.00013972,2]
[335709477,1724457060952,-523.72,0.00013972,2]
[335709478,1724457060962,-500.0,0.00013972,2]
[335709479,1724457060971,-514.74596832,0.00013972,2]
[335709480,1724457060980,-1006.43,0.00013972,2]
[335709481,1724457060990,-1050.15,0.00013972,2]
[335709482,1724457060998,-500.0,0.00013972,2]
[335709483,1724457061008,-967.34,0.00013972,2]
[335709484,1724457061017,-500.0,0.00013972,2]
[335709485,1724457061026,-934.72,0.00013972,2]
[335709486,1724457061035,-500.0,0.00013972,2]
[335709487,1724457061044,-500.0,0.00013972,2]
[335709488,1724457061054,-500.0,0.00013972,2]
[335709489,1724457061063,-254.486329,0.00013972,2]
[335709490,1724457061072,-254.486329,0.00013972,2]
[335709491,1724457061082,-254.486329,0.00013972,2]
[335709492,1724457061093,-500.0,0.00013972,2]
[335709493,1724457061106,-562.90210878,0.00013972,2]
[335709494,1724457061116,-500.0,0.00013972,2]
[335709495,1724457061125,-773.11,0.00013972,2]
[335709496,1724457061135,-1320.6,0.00013972,2]
[335709497,1724457061144,-500.0,0.00013972,2]
[335709498,1724457061155,-675.49,0.00013972,2]
[335709499,1724457061164,-500.0,0.00013972,2]
[335709500,1724457061174,-254.486329,0.00013972,2]
[335709501,1724457061184,-254.486329,0.00013972,2]
[335709502,1724457061194,-254.486329,0.00013972,2]
[335709503,1724457061203,-500.0,0.00013972,2]
[335709504,1724457061213,-500.0,0.00013972,2]
[335709505,1724457061223,-500.0,0.00013972,2]
[335709506,1724457061232,-500.0,0.00013972,2]
[335709507,1724457061241,-1140.01,0.00013972,2]
[335709508,1724457061251,-715.06,0.00013972,2]
[335709509,1724457061260,-500.0,0.00013972,2]
[335709510,1724457061269,-500.0,0.00013972,2]
[335709511,1724457061278,-500.0,0.00013972,2]
[335709512,1724457061288,-1253.01,0.00013972,2]
[335709513,1724457061297,-500.0,0.00013972,2]
[335709514,1724457061307,-2428.32,0.00013972,2]
[335709515,1724457061316,-500.0,0.00013972,2]
[335709516,1724457061325,-500.0,0.00013972,2]
[335709517,1724457061335,-501.5443436,0.00013972,2]
[335709518,1724457061344,-500.0,0.00013972,2]
[335709519,1724457061353,-500.0,0.00013972,2]
[335709520,1724457061363,-500.0,0.00013972,2]
[335709521,1724457061372,-500.0,0.00013972,2]
[335709522,1724457061382,-172.1439037,0.00013972,2]
[335709523,1724457061391,-500.0,0.00013972,2]
[335709524,1724457061400,-513.61075534,0.00013972,2]
[335709525,1724457061409,-2703.75,0.00013972,2]
[335709526,1724457061418,-1154.74,0.00013972,2]
[335709527,1724457061427,-3604.07,0.00013972,2]
[335709528,1724457061436,-500.0,0.00013972,2]
[335709529,1724457061445,-500.0,0.00013972,2]
[335709530,1724457061455,-500.0,0.00013972,2]
[335709531,1724457061464,-2951.36,0.00013972,2]
[335709532,1724457061472,-500.0,0.00013972,2]
[335709533,1724457061482,-500.0,0.00013972,2]
[335709534,1724457061491,-599.62,0.00013972,2]
[335709535,1724457061500,-718.64,0.00013972,2]
[335709536,1724457061509,-500.0,0.00013972,2]
[335709537,1724457061519,-1956.54,0.00013972,2]
[335709538,1724457061528,-2072.04,0.00013972,2]
[335709539,1724457061537,-928.93,0.00013972,2]
[335709540,1724457061547,-621.89,0.00013972,2]
[335709541,1724457061556,-829.95,0.00013972,2]
[335709542,1724457061565,-500.0,0.00013972,2]
[335709543,1724457061574,-500.0,0.00013972,2]
[335709544,1724457061584,-1582.86,0.00013972,2]
[335709545,1724457061593,-1328.93,0.00013972,2]
[335709546,1724457061603,-500.0,0.00013972,2]
[335709547,1724457061614,-500.0,0.00013972,2]
[335709548,1724457061623,-500.0,0.00013972,2]
[335709549,1724457061632,-1083.06,0.00013972,2]
[335709550,1724457061642,-500.0,0.00013972,2]
[335709551,1724457061651,-253.27030964,0.00013972,2]
[335709552,1724457061660,-1781.72,0.00013972,2]
[335709553,1724457061670,-4653.92,0.00013972,2]
[335709554,1724457061679,-630.31,0.00013972,2]
[335709555,1724457061688,-1065.51,0.00013972,2]
[335709556,1724457061697,-500.0,0.00013972,2]
[335709557,1724457061707,-485.525918,0.00013972,2]
[335709558,1724457061716,-485.525918,0.00013972,2]
[335709559,1724457061728,-485.525918,0.00013972,2]
[335709560,1724457061738,-485.525918,0.00013972,2]
[335709561,1724457061748,-500.0,0.00013972,2]
[335709562,1724457061758,-891.66,0.00013972,2]
[335709563,1724457061767,-500.0,0.00013972,2]
[335709564,1724457061776,-485.525918,0.00013972,2]
[335709565,1724457061786,-485.525918,0.00013972,2]
[335709566,1724457061795,-485.525918,0.00013972,2]
[335709567,1724457061804,-485.525918,0.00013972,2]
[335709568,1724457061814,-500.0,0.00013972,2]
[335709569,1724457061824,-573.08,0.00013972,2]
[335709570,1724457061834,-500.0,0.00013972,2]
[335709571,1724457061843,-1919.33,0.00013972,2]
[335709572,1724457061852,-500.0,0.00013972,2]
[335709573,1724457061862,-500.0,0.00013972,2]
[335709574,1724457061871,-500.0,0.00013972,2]
[335709575,1724457061880,-1453.06,0.00013972,2]
[335709576,1724457061889,-500.0,0.00013972,2]
[335709577,1724457061898,-766.35,0.00013972,2]
[335709578,1724457061907,-500.0,0.00013972,2]
[335709579,1724457061917,-151.0,0.00013972,2]
[335709580,1724457061926,-151.0,0.00013972,2]
[335709581,1724457061935,-151.0,0.00013972,2]
[335709582,1724457061945,-151.0,0.00013972,2]
[335709583,1724457061954,-421.091893,0.00013972,2]
[335709584,1724457061964,-151.0,0.00013972,2]
[335709585,1724457061974,-421.091893,0.00013972,2]
[335709586,1724457061985,-151.0,0.00013972,2]
[335709587,1724457061995,-421.091893,0.00013972,2]
[335709588,1724457062006,-500.0,0.00013972,2]
[335709589,1724457062017,-500.0,0.00013972,2]
[335709590,1724457062028,-963.08,0.00013972,2]
[335709591,1724457062040,-500.0,0.00013972,2]
[335709592,1724457062050,-151.0,0.00013972,2]
[335709593,1724457062062,-199.831923,0.00013972,2]
[335709594,1724457062072,-500.0,0.00013972,2]
[335709595,1724457062081,-500.0,0.00013972,2]
[335709596,1724457062090,-640.21,0.00013972,2]
[335709597,1724457062099,-1947.12,0.00013972,2]
[335709598,1724457062108,-500.0,0.00013972,2]
[335709599,1724457062117,-500.0,0.00013972,2]
[335709600,1724457062126,-1769.05,0.00013972,2]
[335709601,1724457062135,-995.08,0.00013972,2]
[335709602,1724457062145,-283.85471778,0.00013972,2]
[335709603,1724457062154,-500.0,0.00013972,2]
[335709604,1724457062163,-150.0,0.00013972,2]
[335709605,1724457062173,-500.0,0.00013972,2]
[335709606,1724457062182,-500.0,0.00013972,2]
[335709607,1724457062191,-500.0,0.00013972,2]
[335709608,1724457062200,-788.3,0.00013972,2]
[335709609,1724457062210,-945.47,0.00013972,2]
[335709610,1724457062220,-500.0,0.00013972,2]
[335709611,1724457062232,-338.59383459,0.00013972,2]
[335709612,1724457062241,-1518.4,0.00013972,2]
[335709613,1724457062250,-500.0,0.00013972,2]
[335709614,1724457062259,-500.0,0.00013972,2]
[335709615,1724457062270,-500.0,0.00013972,2]
[335709616,1724457062278,-316.89026814,0.00013972,2]
[335709617,1724457062287,-500.0,0.00013972,2]
[335709618,1724457062297,-500.0,0.00013972,2]
[335709619,1724457062307,-500.0,0.00013972,2]
[335709620,1724457062316,-739.71,0.00013972,2]
[335709621,1724457062327,-4798.65,0.00013972,2]
[335709622,1724457062339,-509.34574247,0.00013972,2]
[335709623,1724457062349,-1836.93,0.00013972,2]
[335709624,1724457062361,-1302.97,0.00013972,2]
[335709625,1724457062371,-818.35,0.00013972,2]
[335709626,1724457062380,-894.3,0.00013972,2]
[335709627,1724457062389,-500.0,0.00013972,2]
[335709628,1724457062398,-500.0,0.00013972,2]
[335709629,1724457062408,-500.0,0.00013972,2]
[335709630,1724457062417,-436.5566563,0.00013972,2]
[335709631,1724457062426,-769.73,0.00013972,2]
[335709632,1724457062435,-500.0,0.00013972,2]
[335709633,1724457062444,-500.0,0.00013972,2]
[335709634,1724457062453,-634.72,0.00013972,2]
[335709635,1724457062463,-500.0,0.00013972,2]
[335709636,1724457062472,-500.0,0.00013972,2]
[335709637,1724457062480,-2250.09,0.00013972,2]
[335709638,1724457062490,-878.42,0.00013972,2]
[335709639,1724457062499,-591.51,0.00013972,2]
[335709640,1724457062509,-500.0,0.00013972,2]
[335709641,1724457062518,-999.28,0.00013972,2]
[335709642,1724457062528,-500.0,0.00013972,2]
[335709643,1724457062537,-500.0,0.00013972,2]
[335709644,1724457062547,-6667.64,0.00013972,2]
[335709645,1724457062556,-500.0,0.00013972,2]
[335709646,1724457062565,-615.78,0.00013972,2]
[335709647,1724457062575,-431.8913985,0.00013972,2]
[335709648,1724457062585,-1506.11,0.00013972,2]
[335709649,1724457062594,-500.0,0.00013972,2]
[335709650,1724457062605,-500.0,0.00013972,2]
[335709651,1724457062617,-500.0,0.00013972,2]
[335709652,1724457062628,-861.87,0.00013972,2]
[335709653,1724457062638,-500.0,0.00013972,2]
[335709654,1724457062648,-500.0,0.00013972,2]
[335709655,1724457062659,-500.0,0.00013972,2]
[335709656,1724457062670,-3278.72,0.00013972,2]
[335709657,1724457062681,-583.75,0.00013972,2]
[335709658,1724457062824,-3836.89,0.00013972,2]
[335709659,1724457062842,-168.0982547,0.00013972,2]
[335709660,1724457062851,-500.0,0.00013972,2]
[335709661,1724457062861,-630.7,0.00013972,2]
[335709662,1724457062871,-1342.711707,0.00013972,2]
[335709663,1724457062880,-1342.711707,0.00013972,2]
[335709664,1724457062889,-500.0,0.00013972,2]
[335709665,1724457062898,-1342.711707,0.00013972,2]
[335709666,1724457062908,-500.0,0.00013972,2]
[335709667,1724457062917,-1342.711707,0.00013972,2]
[335709668,1724457062927,-500.0,0.00013972,2]
[335709669,1724457062937,-1050.05,0.00013972,2]
[335709670,1724457062946,-500.0,0.00013972,2]
[335709671,1724457062955,-3367.5,0.00013972,2]
[335709672,1724457062964,-1342.711707,0.00013972,2]
[335709673,1724457062974,-1342.711707,0.00013972,2]
[335709674,1724457062983,-1342.711707,0.00013972,2]
[335709675,1724457062992,-1342.711707,0.00013972,2]
[335709676,1724457063001,-1932.03,0.00013972,2]
[335709677,1724457063010,-500.0,0.00013972,2]
[335709678,1724457063020,-530.8838996,0.00013972,2]
[335709679,1724457063030,-500.0,0.00013972,2]
[335709680,1724457063039,-1157.06,0.00013972,2]
[335709681,1724457063048,-638.99,0.00013972,2]
[335709682,1724457063058,-500.0,0.00013972,2]
[335709683,1724457063067,-257.19777599,0.00013972,2]
[335709684,1724457063078,-500.0,0.00013972,2]
[335709685,1724457063089,-840.59,0.00013972,2]
[335709686,1724457063099,-679.43,0.00013972,2]
[335709687,1724457063108,-500.0,0.00013972,2]
[335709688,1724457063118,-308.881337,0.00013972,2]
[335709689,1724457063127,-308.881337,0.00013972,2]
[335709690,1724457063136,-518.43,0.00013972,2]
[335709691,1724457063146,-308.881337,0.00013972,2]
[335709692,1724457063157,-308.881337,0.00013972,2]
[335709693,1724457063167,-500.0,0.00013972,2]
[335709694,1724457063177,-500.0,0.00013972,2]
[335709695,1724457063186,-13324.41,0.00013972,2]
[335709696,1724457063196,-308.881337,0.00013972,2]
[335709697,1724457063206,-759.91,0.00013972,2]
[335709698,1724457063216,-308.881337,0.00013972,2]
[335709699,1724457063229,-500.0,0.00013972,2]
[335709700,1724457063239,-308.881337,0.00013972,2]
[335709701,1724457063250,-308.881337,0.00013972,2]
[335709702,1724457063260,-500.0,0.00013972,2]
[335709703,1724457063271,-690.32,0.00013972,2]
[335709704,1724457063281,-2726.84,0.00013972,2]
[335709705,1724457063291,-1468.89,0.00013972,2]
[335709706,1724457063305,-500.0,0.00013972,2]
[335709707,1724457063315,-500.0,0.00013972,2]
[335709708,1724457063324,-500.0,0.00013972,2]
[335709709,1724457063334,-577.47,0.00013972,2]
[335709710,1724457063348,-500.0,0.00013972,2]
[335709711,1724457063357,-6408.33,0.00013972,2]
[335709712,1724457063367,-575.36,0.00013972,2]
[335709713,1724457063376,-1367.59,0.00013972,2]
[335709714,1724457063385,-2421.26,0.00013972,2]
[335709715,1724457063397,-500.0,0.00013972,2]
[335709716,1724457063406,-3963.96,0.00013972,2]
[335709717,1724457063420,-749.42,0.00013972,2]
[335709718,1724457063429,-207.68521637,0.00013972,2]
[335709719,1724457063439,-1103.918653,0.00013972,2]
[335709720,1724457063450,-1000.0,0.00013972,2]
[335709721,1724457063460,-500.0,0.00013972,2]
[335709722,1724457063469,-1103.918653,0.00013972,2]
[335709723,1724457063479,-1103.918653,0.00013972,2]
[335709724,1724457063489,-1103.918653,0.00013972,2]
[335709725,1724457063498,-720.4,0.00013972,2]
[335709726,1724457063507,-500.0,0.00013972,2]
[335709727,1724457063517,-1103.918653,0.00013972,2]
[335709728,1724457063526,-500.0,0.00013972,2]
[335709729,1724457063535,-1103.918653,0.00013972,2]
[335709730,1724457063544,-1103.918653,0.00013972,2]
[335709731,1724457063554,-1103.918653,0.00013972,2]
[335709732,1724457063563,-500.0,0.00013972,2]
[335709733,1724457063574,-1148.76,0.00013972,2]
[335709734,1724457063584,-500.0,0.00013972,2]
[335709735,1724457063593,-500.0,0.00013972,2]
[335709736,1724457063603,-500.0,0.00013972,2]
[335709737,1724457063613,-7597.35,0.00013972,2]
[335709738,1724457063622,-1260.9,0.00013972,2]
[335709739,1724457063632,-1058.29,0.00013972,2]
[335709740,1724457063641,-519.28,0.00013972,2]
[335709741,1724457063650,-500.0,0.00013972,2]
[335709742,1724457063660,-500.0,0.00013972,2]
[335709743,1724457063669,-525.95013454,0.00013972,2]
[335709744,1724457063679,-500.0,0.00013972,2]
[335709745,1724457063688,-500.0,0.00013972,2]
[335709746,1724457063698,-748.83,0.00013972,2]
[335709747,1724457063707,-900.29,0.00013972,2]
[335709748,1724457063718,-500.0,0.00013972,2]
[335709749,1724457063728,-500.0,0.00013972,2]
[335709750,1724457063738,-5482.65,0.00013972,2]
[335709751,1724457063750,-753.23,0.00013972,2]
[335709752,1724457063760,-500.0,0.00013972,2]
[335709753,1724457063770,-500.0,0.00013972,2]
[335709754,1724457063779,-10196.76,0.00013972,2]
[335709755,1724457063788,-500.0,0.00013972,2]
[335709756,1724457063798,-500.0,0.00013972,2]
[335709757,1724457063807,-500.0,0.00013972,2]
[335709758,1724457063817,-500.0,0.00013972,2]
[335709759,1724457063827,-1254.55,0.00013972,2]
[335709760,1724457063836,-500.0,0.00013972,2]
[335709761,1724457063854,-500.0,0.00013972,2]
[335709762,1724457063863,-500.0,0.00013972,2]
[335709763,1724457063873,-190.97734922,0.00013972,2]
[335709764,1724457063883,-500.0,0.00013972,2]
[335709765,1724457063892,-500.0,0.00013972,2]
[335709766,1724457063902,-725.53,0.00013972,2]
[335709767,1724457063911,-500.0,0.00013972,2]
[335709768,1724457063921,-500.0,0.00013972,2]
[335709769,1724457063931,-1990.45,0.00013972,2]
[335709770,1724457063941,-1151.35,0.00013972,2]
[335709771,1724457063951,-500.0,0.00013972,2]
[335709772,1724457063961,-500.0,0.00013972,2]
[335709773,1724457063970,-500.0,0.00013972,2]
[335709774,1724457063980,-415.78811435,0.00013972,2]
[335709775,1724457063990,-718.53,0.00013972,2]
[335709776,1724457063999,-500.0,0.00013972,2]
[335709777,1724457064008,-5032.41,0.00013972,2]
[335709778,1724457064018,-912.04,0.00013972,2]
[335709779,1724457064027,-500.0,0.00013972,2]
[335709780,1724457064037,-2713.29,0.00013972,2]
[335709781,1724457064046,-2286.6,0.00013972,2]
[335709782,1724457064055,-2252.53,0.00013972,2]
[335709783,1724457064065,-500.0,0.00013972,2]
[335709784,1724457064073,-500.0,0.00013972,2]
[335709785,1724457064083,-500.0,0.00013972,2]
[335709786,1724457064093,-500.0,0.00013972,2]
[335709787,1724457064103,-12386.98,0.00013972,2]
[335709788,1724457064112,-500.0,0.00013972,2]
[335709789,1724457064121,-500.0,0.00013972,2]
[335709790,1724457064130,-500.0,0.00013972,2]
[335709791,1724457064140,-500.0,0.00013972,2]
[335709792,1724457064149,-7043.23,0.00013972,2]
[335709793,1724457064159,-605.57534677,0.00013972,2]
[335709794,1724457064168,-883.37,0.00013972,2]
[335709795,1724457064177,-1587.24,0.00013972,2]
[335709796,1724457064186,-500.0,0.00013972,2]
[335709797,1724457064195,-547.11247919,0.00013972,2]
[335709798,1724457064204,-500.0,0.00013972,2]
[335709799,1724457064214,-500.0,0.00013972,2]
[335709800,1724457064226,-500.0,0.00013972,2]
[335709801,1724457064235,-657.38,0.00013972,2]
[335709802,1724457064246,-500.0,0.00013972,2]
[335709803,1724457064255,-377.326299,0.00013972,2]
[335709804,1724457064266,-377.326299,0.00013972,2]
[335709805,1724457064275,-731.94,0.00013972,2]
[335709806,1724457064285,-377.326299,0.00013972,2]
[335709807,1724457064294,-377.326299,0.00013972,2]
[335709808,1724457064304,-500.0,0.00013972,2]
[335709809,1724457064313,-376.95887794,0.00013972,2]
[335709810,1724457064322,-377.326299,0.00013972,2]
[335709811,1724457064331,-377.326299,0.00013972,2]
[335709812,1724457064342,-377.326299,0.00013972,2]
[335709813,1724457064351,-377.326299,0.00013972,2]
[335709814,1724457064361,-500.0,0.00013972,2]
[335709815,1724457064370,-1252.21,0.00013972,2]
[335709816,1724457064379,-500.0,0.00013972,2]
[335709817,1724457064388,-500.0,0.00013972,2]
[335709818,1724457064398,-500.0,0.00013972,2]
[335709819,1724457064408,-500.0,0.00013972,2]
[335709820,1724457064418,-3842.15,0.00013972,2]
[335709821,1724457064427,-938.19,0.00013972,2]
[335709822,1724457064437,-500.0,0.00013972,2]
[335709823,1724457064446,-898.63,0.00013972,2]
[335709824,1724457064456,-500.0,0.00013972,2]
[335709825,1724457064466,-682.21,0.00013972,2]
[335709826,1724457064475,-1080.0,0.00013972,2]
[335709827,1724457064484,-509.48617632,0.00013972,2]
[335709828,1724457064493,-500.0,0.00013972,2]
[335709829,1724457064503,-500.0,0.00013972,2]
[335709830,1724457064512,-896.01,0.00013972,2]
[335709831,1724457064521,-500.0,0.00013972,2]
[335709832,1724457064530,-14271.93,0.00013972,2]
[335709833,1724457064540,-500.0,0.00013972,2]
[335709834,1724457064549,-1618.12,0.00013972,2]
[335709835,1724457064559,-151.0,0.00013972,2]
[335709836,1724457064568,-903.77,0.00013972,2]
[335709837,1724457064578,-1344.49,0.00013972,2]
[335709838,1724457064587,-151.0,0.00013972,2]
[335709839,1724457064601,-714.43,0.00013972,2]
[335709840,1724457064610,-151.0,0.00013972,2]
[335709841,1724457064620,-151.0,0.00013972,2]
[335709842,1724457064630,-2789.27,0.00013972,2]
[335709843,1724457064639,-151.0,0.00013972,2]
[335709844,1724457064648,-151.0,0.00013972,2]
[335709845,1724457064659,-500.0,0.00013972,2]
[335709846,1724457064668,-500.0,0.00013972,2]
[335709847,1724457064678,-151.0,0.00013972,2]
[335709848,1724457064687,-687.36,0.00013972,2]
[335709849,1724457064697,-151.0,0.00013972,2]
[335709850,1724457064707,-601.34,0.00013972,2]
[335709851,1724457064716,-500.0,0.00013972,2]
[335709852,1724457064726,-2078.3,0.00013972,2]
[335709853,1724457064736,-789.45,0.00013972,2]
[335709854,1724457064745,-151.0,0.00013972,2]
[335709855,1724457064754,-151.0,0.00013972,2]
[335709856,1724457064763,-1237.88,0.00013972,2]
[335709857,1724457064773,-151.0,0.00013972,2]
[335709858,1724457064782,-151.0,0.00013972,2]
[335709859,1724457064791,-978.57,0.00013972,2]
[335709860,1724457064801,-500.0,0.00013972,2]
[335709861,1724457064810,-500.0,0.00013972,2]
[335709862,1724457064819,-22342.93,0.00013972,2]
[335709863,1724457064829,-9517.66,0.00013972,2]
[335709864,1724457064839,-3689.76,0.00013972,2]
[335709865,1724457064848,-500.0,0.00013972,2]
[335709866,1724457064859,-500.0,0.00013972,2]
[335709867,1724457064869,-2315.38,0.00013972,2]
[335709868,1724457064879,-500.0,0.00013972,2]
[335709869,1724457064888,-728.58,0.00013972,2]
[335709870,1724457064898,-1293.72,0.00013972,2]
[335709871,1724457064907,-500.0,0.00013972,2]
[335709872,1724457064917,-151.0,0.00013972,2]
[335709873,1724457064926,-500.0,0.00013972,2]
[335709874,1724457064936,-151.0,0.00013972,2]
[335709875,1724457064945,-664.27,0.00013972,2]
[335709876,1724457064955,-400.505978,0.00013972,2]
[335709877,1724457064964,-151.0,0.00013972,2]
[335709878,1724457064975,-500.0,0.00013972,2]
[335709879,1724457064985,-400.505978,0.00013972,2]
[335709880,1724457064995,-400.505978,0.00013972,2]
[335709881,1724457065004,-400.505978,0.00013972,2]
[335709882,1724457065013,-10312.48,0.00013972,2]
[335709883,1724457065026,-4858.7,0.00013972,2]
[335709884,1724457065035,-500.0,0.00013972,2]
[335709885,1724457065045,-400.505978,0.00013972,2]
[335709886,1724457065055,-400.505978,0.00013972,2]
[335709887,1724457065064,-400.505978,0.00013972,2]
[335709888,1724457065074,-400.505978,0.00013972,2]
[335709889,1724457065087,-500.0,0.00013972,2]
[335709890,1724457065099,-730.56,0.00013972,2]